fUST/lending_fUST_20260127
["ID","MTS","AMOUNT","RATE_DAILY","PERIOD"]
[403667886,1769459244143,-500.0,0.00012821,2]
[403667887,1769459244164,-500.0,0.00012821,2]
[403667888,1769459244185,-553.64373807,0.00012821,2]
[403667889,1769459244207,-500.0,0.00012821,2]
[403667890,1769459244228,-151.0,0.00012821,2]
[403667892,1769459244249,-500.0,0.00012821,2]
[403667894,1769459244269,-2674.60743027,0.00012821,2]
[403667895,1769459244290,-250.0,0.00012821,2]
[403667896,1769459244311,-250.0,0.00012821,2]
[403667897,1769459244331,-250.0,0.00012821,2]
[403667898,1769459244353,-250.0,0.00012821,2]
[403667900,1769459244373,-256.17986257,0.00012821,2]
[403667901,1769459244393,-500.0,0.00012958,2]
[403667902,1769459244413,-500.0,0.00012958,2]
[403667903,1769459244432,-500.0,0.00012958,2]
[403667904,1769459244452,-500.0,0.00012958,2]
[403667905,1769459244471,-2652.25253861,0.00013014,2]
[403667906,1769459244491,-300.81623099,0.00013095,2]
[403667907,1769459244513,-223.92590858,0.00013095,2]
[403667908,1769459244532,-160.0,0.00013228,2]
[403667909,1769459244552,-1041.66666667,0.00013228,2]
[403667910,1769459244571,-500.0,0.00013232,2]
[403667911,1769459244593,-500.0,0.00013273,2]
[403667912,1769459244612,-500.0,0.00013273,2]
[403667913,1769459244632,-502.99035624,0.00013273,2]
[403667914,1769459244651,-162.48916646,0.00013273,2]
[403667915,1769459244670,-500.0,0.00013273,2]
[403667916,1769459244690,-500.0,0.00013273,2]
[403667917,1769459244710,-503.5144957,0.00013273,2]
[403667918,1769459244731,-386.99327385,0.00013273,2]
[403667919,1769459244750,-500.0,0.00013273,2]
[403667920,1769459244770,-500.0,0.00013273,2]
[403667921,1769459244790,-501.2459449,0.00013273,2]
[403667922,1769459244809,-500.0,0.00013273,2]
[403667923,1769459244830,-500.0,0.00013273,2]
[403667924,1769459244850,-500.0,0.00013273,2]
[403667925,1769459244869,-502.4998524,0.00013273,2]
[403667926,1769459244888,-501.2138829,0.00013273,2]
[403667927,1769459244908,-500.0,0.00013273,2]
[403667928,1769459244930,-420.0,0.00013312,2]
[403667929,1769459244951,-378.5669065,0.00013323,2]
[403667931,1769459244972,-574.12855637,0.00013369,2]
[403667932,1769459244991,-151.0,0.00013369,2]
[403667933,1769459245011,-628.77744007,0.00013369,2]
[403667934,1769459245362,-511.58105016,0.00012723,2]
[403667935,1769459245382,-500.92401321,0.00013273,2]
[403667936,1769459245402,-2144.79046512,0.00013369,2]
[403667937,1769459245421,-378.57,0.000134,2]
[403667938,1769459245440,-378.5669065,0.000134,2]
[403667939,1769459245461,-378.3483121,0.000134,2]
[403667940,1769459245481,-420.0,0.00013429,2]
[403667941,1769459245500,-151.81,0.00013429,2]
[403667942,1769459245524,-151.81,0.00013429,2]
[403667943,1769459245544,-151.81,0.00013429,2]
[403667944,1769459245565,-151.81,0.00013429,2]
[403667945,1769459245584,-151.81,0.00013429,2]
[403667947,1769459245603,-151.81,0.00013429,2]
[403667948,1769459245621,-151.0,0.000135,2]
[403667949,1769459245641,-151.0,0.000136,2]
[403667950,1769459245662,-600.53,0.00013698,2]
[403667951,1769459245683,-600.53,0.00013698,2]
[403667952,1769459245703,-600.53,0.00013698,2]
[403667953,1769459245724,-600.53,0.00013698,2]
[403667954,1769459245745,-600.53,0.00013698,2]
[403667955,1769459245766,-600.53,0.00013698,2]
[403667956,1769459245786,-600.53,0.00013698,2]
[403667957,1769459245807,-600.53,0.00013698,2]
[403667958,1769459245829,-600.53,0.00013698,2]
[403667959,1769459245850,-600.53,0.00013698,2]
[403667960,1769459245870,-600.53,0.00013698,2]
[403667961,1769459245890,-600.53,0.00013698,2]
[403667962,1769459245910,-600.53,0.00013698,2]
[403667963,1769459245931,-600.53,0.00013698,2]
[403667964,1769459245950,-600.53,0.00013698,2]
[403667965,1769459245970,-600.53,0.00013698,2]
[403667966,1769459245989,-600.53,0.00013698,2]
[403667967,1769459246010,-600.53,0.00013698,2]
[403667968,1769459246030,-600.53,0.00013698,2]
[403667969,1769459246051,-600.53,0.00013698,2]
[403667970,1769459246071,-600.53,0.00013698,2]
[403667971,1769459246092,-600.53,0.00013698,2]
[403667972,1769459246112,-600.53,0.00013698,2]
[403667973,1769459246132,-600.74568546,0.00013698,2]
[403667974,1769459246150,-500.0,0.00013698,2]
[403667975,1769459246170,-500.0,0.00013698,2]
[403667976,1769459246189,-500.0,0.00013698,2]
[403667977,1769459246207,-626.122152,0.00013698,2]
[403667979,1769459246226,-477.12811929,0.00013698,2]
[403667980,1769459246246,-180.0,0.00013698,2]
[403667981,1769459246264,-500.0,0.00013698,2]
[403667982,1769459246284,-500.0,0.00013698,2]
[403667983,1769459246303,-500.0,0.00013698,2]
[403667984,1769459246321,-500.0,0.00013698,2]
[403667985,1769459246341,-500.0,0.00013698,2]
[403667986,1769459246359,-500.0,0.00013698,2]
[403667987,1769459246376,-500.0,0.00013698,2]
[403667988,1769459246394,-282.825542,0.00013698,2]
[403667989,1769459246414,-154.20486829,0.00013698,2]
[403667990,1769459246433,-953.37907197,0.00013698,2]
[403667991,1769459246452,-1000.0,0.00013699,2]
[403667992,1769459246470,-500.0,0.00013699,2]
[403667993,1769459246489,-500.0,0.00013699,2]
[403667994,1769459246511,-500.0,0.00013699,2]
[403667995,1769459246529,-180.44093283,0.00013699,2]
[403667996,1769459246551,-500.0,0.00013699,2]
[403667997,1769459246573,-500.0,0.00013699,2]
[403667998,1769459246593,-300.01916849,0.00013699,2]
[403667999,1769459246612,-500.0,0.00013699,2]
[403668000,1769459246629,-500.0,0.00013699,2]
[403668001,1769459246649,-500.0,0.00013699,2]
[403668002,1769459246668,-500.0,0.00013699,2]
[403668003,1769459246686,-501.29959982,0.00013699,2]
[403668004,1769459246704,-158.2,0.00013699,2]
[403668005,1769459246724,-500.0,0.00013699,2]
[403668006,1769459246742,-500.0,0.00013699,2]
[403668007,1769459246762,-500.0,0.00013699,2]
[403668008,1769459246784,-228.02056982,0.00013699,2]
[403668009,1769459246803,-288.2,0.00013699,2]
[403668010,1769459246823,-500.0,0.00013699,2]
[403668011,1769459246844,-1673.99909161,0.00013699,7]
[403668012,1769459246863,-171.30774651,0.00013699,2]
[403668013,1769459246884,-151.0,0.000138,2]
[403668014,1769459246904,-500.0,0.00013821,2]
[403668015,1769459246923,-1000.0,0.00013821,2]
[403668016,1769459246943,-504.66008898,0.00013821,2]
[403668017,1769459246962,-500.0,0.00013821,2]
[403668018,1769459246982,-1000.0,0.00013821,2]
[403668019,1769459247001,-1000.0,0.00013821,2]
[403668020,1769459247022,-1000.0,0.00013821,2]
[403668021,1769459247041,-1000.0,0.00013821,2]
[403668022,1769459247066,-720.0,0.00013832,2]
[403668023,1769459247088,-533.88981491,0.00013917,2]
[403668024,1769459247109,-324.02403975,0.00013954,2]
[403668025,1769459247128,-1000.0,0.00013973,2]
[403668026,1769459247147,-51258.54707718,0.0001399,2]
[403668027,1769459247326,-48741.45292282,0.0001399,2]
[403668028,1769459247345,-162.76778939,0.00014113,2]
[403668029,1769459247364,-651.07115756,0.00014113,2]
[403668030,1769459247384,-1464.91010452,0.00014113,2]
[403668031,1769459247404,-2604.28463025,0.00014113,2]
[403668032,1769459247423,-4069.19473477,0.00014113,2]
[403668033,1769459247443,-151.0,0.000142,2]
[403668034,1769459247461,-1000.0,0.00014247,2]
[403668035,1769459247481,-1000.0,0.00014247,2]
[403668036,1769459247499,-338.60245616,0.00014247,2]
[403668037,1769459247525,-1000.0,0.00014247,2]
[403668038,1769459247546,-1500.0,0.00014368,2]
[403668039,1769459247566,-1500.0,0.00014368,2]
[403668040,1769459247589,-1500.0,0.00014368,2]
[403668041,1769459247608,-1500.0,0.00014368,2]
[403668042,1769459247628,-1500.0,0.00014368,2]
[403668043,1769459247647,-1166.90309853,0.00014384,2]
[403668044,1769459247666,-587.0,0.00014612,2]
[403668045,1769459247687,-151.0,0.000147,2]
[403668046,1769459247706,-150.0,0.00014765,2]
[403668047,1769459247724,-954.33550312,0.00014795,2]
[403668048,1769459247743,-603.99181188,0.00014795,2]
[403668049,1769459247762,-1461.62464944,0.00014795,2]
[403668050,1769459247784,-513.6636267,0.00014856,2]
[403668051,1769459247803,-924.59452807,0.00014856,2]
[403668052,1769459247824,-1643.72360546,0.00014856,2]
[403668053,1769459247844,-2568.31813352,0.00014856,2]
[403668054,1769459247862,-2000.0,0.00014916,2]
[403668055,1769459247882,-2000.0,0.00014916,2]
[403668056,1769459247903,-2000.0,0.00014916,2]
[403668057,1769459247922,-2000.0,0.00014916,2]
[403668058,1769459247942,-2000.0,0.00014916,2]
[403668059,1769459247960,-1099.536109,0.00015068,2]
[403668060,1769459247979,-2150.0,0.00015076,2]
[403668061,1769459247999,-418.0,0.00015076,2]
[403668062,1769459248018,-179.0,0.00015076,2]
[403668063,1769459248037,-503.01,0.000151,2]
[403668064,1769459248060,-864.0,0.00015215,2]
[403668065,1769459248081,-151.0,0.000153,2]
[403668066,1769459248101,-9767.24,0.00015342,2]
[403668067,1769459248126,-10000.0,0.00015342,2]
[403668068,1769459248146,-115739.75456458,0.000154,2]
[403668069,1769459248166,-151.309593,0.000154,2]
[403668070,1769459248185,-151.0,0.000154,2]
[403668071,1769459248206,-213.05747,0.000154,2]
[403668072,1769459248225,-213.05747,0.000154,2]
[403668073,1769459248245,-213.05747,0.000154,2]
[403668074,1769459248265,-213.05747,0.000154,2]
[403668075,1769459248284,-151.0,0.000154,2]
[403668076,1769459248303,-1325.37,0.00015442,2]
[403668077,1769459248322,-2500.0,0.00015464,2]
[403668078,1769459248341,-2500.0,0.00015464,2]
[403668079,1769459248360,-2500.0,0.00015464,2]
[403668080,1769459248379,-1032.28175019,0.00015464,2]
[403668081,1769459248399,-2500.0,0.00015464,2]
[403668082,1769459248417,-182.0,0.00015589,3]
[403668083,1769459248436,-779.0,0.000156,2]
[403668084,1769459248454,-5000.0,0.0001564,2]
[403668085,1769459248473,-159.62665952,0.00015714,2]
[403668086,1769459248492,-151.0,0.000158,2]
[403668087,1769459248515,-373.45143565,0.00015954,2]
[403668088,1769459248534,-3000.0,0.00016,2]
[403668089,1769459248554,-3000.0,0.0001601,2]
[403668090,1769459248573,-3000.0,0.00016012,2]
[403668091,1769459248594,-1975.94196246,0.00016012,2]
[403668092,1769459248613,-3000.0,0.0001602,2]
[403668093,1769459248632,-153.0,0.00016024,2]
[403668094,1769459248651,-153.0,0.00016024,2]
[403668095,1769459248816,-153.0,0.00016024,2]
[403668096,1769459248836,-3000.0,0.0001603,2]
[403668097,1769459248857,-823.0,0.00016038,2]
[403668098,1769459248877,-3000.0,0.0001604,2]
[403668099,1769459248896,-3000.0,0.0001605,2]
[403668100,1769459248917,-3000.0,0.0001606,2]
[403668101,1769459248938,-4032.66127,0.0001607,2]
[403668102,1769459248958,-179.87408814,0.00016146,2]
[403668103,1769459248978,-611.057529,0.0001617,2]
[403668104,1769459248999,-151.0,0.000164,2]
[403668105,1769459249019,-250.0,0.00016438,2]
[403668106,1769459249039,-301.393807,0.00016438,2]
[403668107,1769459249058,-301.393807,0.00016438,2]
[403668108,1769459249077,-301.393807,0.00016438,2]
[403668109,1769459249097,-301.393807,0.00016438,2]
[403668110,1769459249116,-210.734102,0.00016438,2]
[403668111,1769459249135,-210.734102,0.00016438,2]
[403668112,1769459249154,-210.734102,0.00016438,2]
[403668113,1769459249174,-210.734102,0.00016438,2]
[403668114,1769459249193,-200.47154856,0.00016473,2]
[403668115,1769459249216,-2678.911412,0.0001656,7]
[403668116,1769459249236,-3500.0,0.0001656,2]
[403668117,1769459249259,-1000.0,0.00016736,2]
[403668118,1769459249278,-156.12772674,0.00016739,2]
[403668119,1769459249299,-19257.14969804,0.00017,2]
[403668120,1769459249319,-151.0,0.00017,2]
[403668121,1769459249338,-500.0,0.00017108,2]
[403668122,1769459249360,-2215.8,0.00017305,2]
[403668123,1769459249381,-1711.61658029,0.000175,3]
[403668124,1769459249401,-151.0,0.000175,2]
[403668125,1769459249421,-295.0,0.00017558,2]
[403668126,1769459249440,-1089.696487,0.00017558,7]
[403668127,1769459249460,-501.27029717,0.00017558,5]
[403668128,1769459249480,-300.0,0.000176,2]
[403668129,1769459249501,-1152.0,0.00017604,2]
[403668130,1769459249525,-359.0,0.00017705,2]
[403668131,1769459249545,-459.209659,0.00017765,7]
[403668132,1769459249568,-248.45603,0.00017765,7]
[403668133,1769459249590,-150.0,0.00017808,2]
[403668134,1769459249609,-445.0,0.00017858,2]
[403668135,1769459249629,-798.48295,0.00017858,7]
[403668136,1769459249651,-765.40326,0.00017885,7]
[403668137,1769459249671,-422.87883154,0.00017954,2]
[403668138,1769459249693,-26566.35578582,0.00018,2]
[403668139,1769459249715,-168.0,0.00018014,2]
[403668140,1769459249735,-418.0,0.00018076,2]
[403668141,1769459249755,-179.0,0.00018076,2]
[403668142,1769459249776,-151.0,0.000181,2]
[403668143,1769459249798,-168.0,0.00018121,2]
[403668144,1769459249820,-348.0,0.00018133,2]
[403668145,1769459249841,-290.29871815,0.00018262,2]
[403668146,1769459249862,-184.03,0.0001833,2]
[403668147,1769459249883,-301.7262602,0.00018356,2]
[403668148,1769459249907,-1000.0,0.0001841,2]
[403668149,1769459249930,-244.0,0.0001841,2]
[403668150,1769459249950,-500.0,0.0001848,2]
[403668151,1769459249970,-1099.536109,0.00018493,2]
[403668152,1769459249990,-1553.143611,0.000185,2]
[403668153,1769459250012,-231.4073127,0.00018535,2]
[403668154,1769459250034,-389.2496752,0.00018535,2]
[403668155,1769459250054,-305.5744611,0.00018535,2]
[403668156,1769459250074,-194.6248376,0.00018535,2]
[403668157,1769459250094,-317.7366431,0.00018535,2]
[403668158,1769459250113,-601.3453713,0.00018535,2]
[403668159,1769459250133,-185.3395218,0.00018535,2]
[403668160,1769459250154,-185.3395218,0.00018535,2]
[403668161,1769459250172,-194.6248376,0.00018535,2]
[403668162,1769459250192,-603.732074,0.00018535,2]
[403668163,1769459250214,-185.3395218,0.00018535,2]
[403668164,1769459250234,-194.6248376,0.00018535,2]
[403668165,1769459250254,-1207.464148,0.00018535,2]
[403668166,1769459250273,-194.6248376,0.00018535,2]
[403668167,1769459250293,-199.7326391,0.00018535,2]
[403668168,1769459250315,-500.0,0.0001854,2]
[403668169,1769459250339,-313.0,0.00018557,2]
[403668170,1769459250359,-313.0,0.00018563,2]
[403668171,1769459250379,-151.0,0.000186,2]
[403668172,1769459250400,-164.34495881,0.0001862,2]
[403668173,1769459250420,-231.9323018,0.00018626,2]
[403668174,1769459250439,-153.0,0.00018626,2]
[403668175,1769459250458,-153.0,0.00018626,2]
[403668176,1769459250477,-153.0,0.00018626,2]
[403668177,1769459250497,-153.0,0.00018626,2]
[403668178,1769459250519,-153.0,0.00018626,2]
[403668179,1769459250539,-313.0,0.00018655,2]
[403668180,1769459250562,-313.0,0.00018669,2]
[403668181,1769459250581,-610.4959146,0.00018706,2]
[403668182,1769459250602,-184.6822138,0.00018706,2]
[403668183,1769459250621,-194.6248376,0.00018706,2]
[403668184,1769459250643,-168.0,0.00018711,2]
[403668185,1769459250666,-168.0,0.00018736,2]
[403668186,1769459250685,-313.0,0.00018738,2]
[403668187,1769459250707,-313.0,0.00018741,2]
[403668188,1769459250727,-313.0,0.00018742,2]
[403668189,1769459250747,-313.0,0.00018745,2]
[403668190,1769459250768,-313.0,0.00018751,2]
[403668191,1769459250788,-313.0,0.00018755,2]
[403668192,1769459250810,-313.0,0.00018756,2]
[403668193,1769459250829,-292.006585,0.00018761,2]
[403668194,1769459250849,-313.0,0.00018761,2]
[403668195,1769459250868,-5000.0,0.00018768,2]
[403668196,1769459250890,-313.0,0.00018775,2]
[403668197,1769459250910,-313.0,0.00018788,2]
[403668198,1769459250932,-313.0,0.00018833,2]
[403668199,1769459250953,-313.0,0.00018844,2]
[403668200,1769459250974,-172.905148,0.00018844,2]
[403668201,1769459250994,-301.393807,0.00018844,2]
[403668202,1769459251014,-301.393807,0.00018844,2]
[403668203,1769459251033,-301.393807,0.00018844,2]
[403668204,1769459251053,-301.393807,0.00018844,2]
[403668205,1769459251073,-4431.61,0.00018878,2]
[403668206,1769459251093,-213.05747,0.00018878,2]
[403668207,1769459251114,-213.05747,0.00018878,2]
[403668208,1769459251135,-213.05747,0.00018878,2]
[403668209,1769459251156,-213.05747,0.00018878,2]
[403668210,1769459251175,-210.734102,0.00018878,2]
[403668211,1769459251196,-210.734102,0.00018878,2]
[403668212,1769459251215,-210.734102,0.00018878,2]
[403668213,1769459251233,-210.734102,0.00018878,2]
[403668214,1769459251252,-303.10001603,0.000189,2]
[403668215,1769459251271,-303.10001603,0.000189,2]
[403668216,1769459251292,-313.0,0.00018926,2]
[403668217,1769459251311,-311.341853,0.00018963,7]
[403668218,1769459251329,-12769.97084875,0.00019,2]
[403668220,1769459251348,-1000.0,0.00019,2]
[403668221,1769459251369,-313.0,0.00019041,2]
[403668222,1769459251389,-313.0,0.00019045,2]
[403668223,1769459251408,-303.10001603,0.00019089,2]
[403668224,1769459251427,-303.10001603,0.00019089,2]
[403668225,1769459251447,-8604.0647855,0.00019104,2]
[403668226,1769459251468,-313.0,0.00019156,2]
[403668227,1769459251489,-313.0,0.00019159,2]
[403668228,1769459251509,-153.0,0.00019174,2]
[403668229,1769459251532,-153.0,0.00019174,2]
[403668230,1769459251552,-153.0,0.00019174,2]
[403668231,1769459251570,-38000.0,0.00019178,3]
[403668232,1769459251591,-38000.0,0.00019178,3]
[403668233,1769459251610,-26373.61626321,0.00019178,3]
[403668234,1769459251629,-507.9665,0.00019178,2]
[403668235,1769459251648,-507.9665,0.00019178,2]
[403668236,1769459251667,-200.0,0.00019178,2]
[403668237,1769459251687,-507.9665,0.00019178,2]
[403668238,1769459251706,-507.9665,0.00019178,2]
[403668239,1769459251724,-507.9665,0.00019178,2]
[403668240,1769459251742,-507.9665,0.00019178,2]
[403668241,1769459251762,-507.9665,0.00019178,2]
[403668242,1769459251781,-507.9665,0.00019178,2]
[403668243,1769459251800,-507.9665,0.00019178,2]
[403668244,1769459251818,-507.9665,0.00019178,2]
[403668245,1769459251836,-507.9665,0.00019178,2]
[403668246,1769459251855,-507.9665,0.00019178,2]
[403668247,1769459251874,-507.9665,0.00019178,2]
[403668248,1769459251892,-507.9665,0.00019178,2]
[403668249,1769459251912,-507.9665,0.00019178,2]
[403668250,1769459251931,-438.75,0.00019178,2]
[403668251,1769459251950,-507.96,0.00019178,2]
[403668253,1769459251970,-507.9665,0.00019178,2]
[403668254,1769459251989,-200.01,0.00019178,2]
[403668255,1769459252009,-301.393807,0.00019178,2]
[403668256,1769459252031,-301.393807,0.00019178,2]
[403668257,1769459252051,-301.393807,0.00019178,2]
[403668258,1769459252070,-301.393807,0.00019178,2]
[403668259,1769459252090,-213.05747,0.00019178,2]
[403668260,1769459252110,-213.05747,0.00019178,2]
[403668261,1769459252129,-213.05747,0.00019178,2]
[403668262,1769459252148,-213.05747,0.00019178,2]
[403668263,1769459252167,-507.9665,0.00019178,2]
[403668264,1769459252185,-507.9665,0.00019178,2]
[403668265,1769459252203,-210.734102,0.00019178,2]
[403668266,1769459252221,-210.734102,0.00019178,2]
[403668267,1769459252239,-210.734102,0.00019178,2]
[403668268,1769459252257,-210.734102,0.00019178,2]
[403668269,1769459252276,-507.9665,0.00019178,2]
[403668270,1769459252295,-507.96,0.00019178,2]
[403668271,1769459252314,-507.9665,0.00019178,2]
[403668272,1769459252469,-507.9665,0.00019178,2]
[403668273,1769459252488,-507.9665,0.00019178,2]
[403668274,1769459252507,-507.9665,0.00019178,2]
[403668275,1769459252530,-151.0,0.00019178,2]
[403668276,1769459252551,-151.0,0.00019178,2]
[403668277,1769459252569,-151.0,0.00019178,2]
[403668278,1769459252587,-151.0,0.00019178,2]
[403668279,1769459252607,-151.0,0.00019178,2]
[403668280,1769459252626,-151.0,0.00019178,2]
[403668281,1769459252645,-151.0,0.00019178,2]
[403668282,1769459252665,-178.665213,0.00019178,2]
[403668283,1769459252684,-151.0,0.00019178,2]
[403668284,1769459252702,-151.0,0.00019178,2]
[403668285,1769459252721,-151.0,0.00019178,2]
[403668286,1769459252738,-161.239187,0.00019178,2]
[403668287,1769459252756,-467.751759,0.00019178,2]
[403668288,1769459252775,-467.751759,0.00019178,2]
[403668289,1769459252794,-467.751759,0.00019178,2]
[403668290,1769459252813,-467.751759,0.00019178,2]
[403668291,1769459252832,-467.751759,0.00019178,2]
[403668292,1769459252852,-467.751759,0.00019178,2]
[403668293,1769459252870,-467.751759,0.00019178,2]
[403668294,1769459252889,-467.751759,0.00019178,2]
[403668295,1769459252909,-467.751759,0.00019178,2]
[403668296,1769459252929,-201.954617,0.00019178,2]
[403668297,1769459252949,-201.954617,0.00019178,2]
[403668298,1769459252969,-467.751759,0.00019178,2]
[403668299,1769459252989,-467.751759,0.00019178,2]
[403668300,1769459253008,-201.954617,0.00019178,2]
[403668301,1769459253028,-467.751759,0.00019178,2]
[403668302,1769459253048,-165.360743,0.00019178,2]
[403668303,1769459253068,-165.360743,0.00019178,2]
[403668305,1769459253088,-201.954617,0.00019178,2]
[403668306,1769459253108,-165.360743,0.00019178,2]
[403668307,1769459253128,-201.954617,0.00019178,2]
[403668308,1769459253147,-201.954617,0.00019178,2]
[403668309,1769459253167,-165.360743,0.00019178,2]
[403668310,1769459253187,-165.360743,0.00019178,2]
[403668311,1769459253206,-201.954617,0.00019178,2]
[403668313,1769459253226,-165.360743,0.00019178,2]
[403668314,1769459253246,-201.954617,0.00019178,2]
[403668315,1769459253265,-201.954617,0.00019178,2]
[403668316,1769459253285,-165.360743,0.00019178,2]
[403668317,1769459253306,-165.360743,0.00019178,2]
[403668318,1769459253325,-201.954617,0.00019178,2]
[403668319,1769459253345,-165.360743,0.00019178,2]
[403668320,1769459253365,-201.954617,0.00019178,2]
[403668321,1769459253384,-201.954617,0.00019178,2]
[403668322,1769459253404,-165.360743,0.00019178,2]
[403668323,1769459253424,-165.360743,0.00019178,2]
[403668324,1769459253443,-165.360743,0.00019178,2]
[403668325,1769459253462,-1150.002028,0.00019178,2]
[403668326,1769459253482,-1150.002028,0.00019178,2]
[403668327,1769459253501,-1150.002028,0.00019178,2]
[403668328,1769459253524,-1150.002028,0.00019178,2]
[403668329,1769459253544,-1150.002028,0.00019178,2]
[403668330,1769459253566,-1150.002028,0.00019178,2]
[403668331,1769459253586,-1150.002028,0.00019178,2]
[403668332,1769459253607,-1150.002028,0.00019178,2]
[403668333,1769459253627,-1150.002028,0.00019178,2]
[403668334,1769459253646,-1150.002028,0.00019178,2]
[403668335,1769459253667,-1150.002028,0.00019178,2]
[403668336,1769459253686,-1150.002028,0.00019178,2]
[403668337,1769459253705,-151.0,0.00019178,2]
[403668338,1769459253724,-151.0,0.00019178,2]
[403668339,1769459253744,-178.583523,0.00019178,2]
[403668340,1769459253763,-151.0,0.00019178,2]
[403668341,1769459253782,-164.419897,0.00019178,2]
[403668342,1769459253802,-192.021931,0.00019178,2]
[403668343,1769459253821,-192.021931,0.00019178,2]
[403668344,1769459253842,-192.021931,0.00019178,2]
[403668345,1769459253862,-192.021931,0.00019178,2]
[403668346,1769459253882,-192.021931,0.00019178,2]
[403668347,1769459253904,-192.021931,0.00019178,2]
[403668348,1769459253926,-192.021931,0.00019178,2]
[403668349,1769459253947,-192.021931,0.00019178,2]
[403668350,1769459253968,-192.021931,0.00019178,2]
[403668351,1769459253990,-192.021931,0.00019178,2]
[403668352,1769459254013,-192.021931,0.00019178,2]
[403668353,1769459254034,-192.021931,0.00019178,2]
[403668354,1769459254055,-237.080708,0.00019178,2]
[403668355,1769459254076,-237.080708,0.00019178,2]
[403668356,1769459254099,-237.080708,0.00019178,2]
[403668357,1769459254121,-237.080708,0.00019178,2]
[403668358,1769459254145,-237.080708,0.00019178,2]
[403668359,1769459254166,-237.080708,0.00019178,2]
[403668360,1769459254187,-237.080708,0.00019178,2]
[403668361,1769459254207,-237.080708,0.00019178,2]
[403668362,1769459254228,-237.080708,0.00019178,2]
[403668363,1769459254249,-237.080708,0.00019178,2]
[403668364,1769459254270,-237.080708,0.00019178,2]
[403668366,1769459254291,-237.080708,0.00019178,2]
[403668367,1769459254313,-151.0,0.00019178,2]
[403668368,1769459254334,-151.0,0.00019178,2]
[403668369,1769459254355,-151.0,0.00019178,2]
[403668370,1769459254375,-298.612995,0.00019178,2]
[403668371,1769459254394,-298.612995,0.00019178,2]
[403668372,1769459254415,-298.612995,0.00019178,2]
[403668373,1769459254436,-298.612995,0.00019178,2]
[403668374,1769459254457,-298.612995,0.00019178,2]
[403668375,1769459254479,-298.612995,0.00019178,2]
[403668376,1769459254501,-298.612995,0.00019178,2]
[403668377,1769459254528,-298.612995,0.00019178,2]
[403668378,1769459254548,-298.612995,0.00019178,2]
[403668379,1769459254569,-298.612995,0.00019178,2]
[403668380,1769459254590,-298.612995,0.00019178,2]
[403668381,1769459254616,-298.612995,0.00019178,2]
[403668382,1769459254638,-277.267785,0.00019178,2]
[403668383,1769459254659,-277.267785,0.00019178,2]
[403668384,1769459254679,-277.267785,0.00019178,2]
[403668385,1769459254699,-277.267785,0.00019178,2]
[403668386,1769459254719,-277.267785,0.00019178,2]
[403668387,1769459254740,-277.267785,0.00019178,2]
[403668388,1769459254761,-277.267785,0.00019178,2]
[403668389,1769459254783,-277.267785,0.00019178,2]
[403668390,1769459254803,-277.267785,0.00019178,2]
[403668391,1769459254823,-277.267785,0.00019178,2]
[403668392,1769459254842,-277.267785,0.00019178,2]
[403668393,1769459254864,-277.267785,0.00019178,2]
[403668394,1769459254884,-160.281253,0.00019178,2]
[403668395,1769459254904,-160.281253,0.00019178,2]
[403668397,1769459254925,-160.281253,0.00019178,2]